bitfinex/quotes_BTCUSD_20250525
["timestamp","ask_amount","ask_price","bid_price","bid_amount"]
[1748138689518,0.01,107420.0,107410.0,0.57137471]
[1748138689520,0.05,107430.0,107410.0,0.57137471]
[1748138689773,0.05,107430.0,107420.0,1.01114849]
[1748138690028,0.0397,107440.0,107420.0,0.707017]
[1748138690251,0.0397,107430.0,107420.0,0.34]
[1748138690481,0.0997,107420.0,107410.0,0.01403271]
[1748138690696,0.0997,107420.0,107410.0,1.29824471]
[1748138690835,0.0997,107420.0,107410.0,1.23955571]
[1748138691064,0.0997,107420.0,107410.0,1.20475571]
[1748138691261,0.0997,107420.0,107410.0,0.6873111]
[1748138691471,0.0997,107420.0,107410.0,0.7873111]
[1748138691879,0.0997,107420.0,107410.0,0.7863111]
[1748138692687,0.0997,107420.0,107410.0,1.0648711]
[1748138692894,0.0997,107420.0,107410.0,1.0658711]
[1748138693119,0.0997,107420.0,107410.0,1.0668711]
[1748138696257,0.0997,107420.0,107410.0,1.08089337]
[1748138697632,0.0997,107420.0,107410.0,1.95706937]
[1748138698325,0.0997,107420.0,107410.0,1.93307137]
[1748138698533,0.0997,107420.0,107410.0,1.89684337]
[1748138698690,0.0997,107420.0,107410.0,1.06124337]
[1748138698898,0.0997,107420.0,107410.0,1.33980337]
[1748138702800,0.0997,107420.0,107410.0,0.97844337]
[1748138704642,0.06,107420.0,107410.0,0.97844337]
[1748138704868,0.04811687,107430.0,107410.0,0.97844337]
[1748138705066,0.0295,107440.0,107420.0,1.25096346]
[1748138705301,0.0295,107440.0,107430.0,1.523372]
[1748138705510,0.0488,107440.0,107430.0,0.488692]
[1748138705703,0.0714,107440.0,107430.0,0.111818]
[1748138705901,0.0714,107440.0,107430.0,0.27856]
[1748138706131,0.0714,107440.0,107430.0,0.700217]
[1748138706270,0.0714,107440.0,107430.0,0.672495]
[1748138706480,0.0724,107440.0,107430.0,0.672495]
[1748138707058,0.0744,107440.0,107430.0,0.672495]
[1748138707573,0.0744,107440.0,107430.0,1.930895]
[1748138707770,0.0744,107440.0,107430.0,1.373855]
[1748138707969,0.0764,107440.0,107430.0,1.373855]
[1748138708172,0.0764,107440.0,107430.0,0.753363]
[1748138709040,0.0764,107440.0,107430.0,0.474803]
[1748138709270,0.0764,107440.0,107430.0,0.753363]
[1748138716521,0.0764,107440.0,107430.0,0.61852]
[1748138716732,0.0764,107440.0,107430.0,0.728706]
[1748138716951,0.0764,107440.0,107430.0,0.450186]
[1748138717173,0.0469,107440.0,107430.0,0.728706]
[1748138717496,0.0469,107440.0,107430.0,1.285746]
[1748138717705,0.0469,107440.0,107430.0,1.647106]
[1748138718198,0.0469,107440.0,107430.0,1.090066]
[1748138718334,0.0469,107440.0,107430.0,0.728706]
[1748138719149,0.0469,107440.0,107430.0,0.61852]
[1748138720179,0.0469,107440.0,107430.0,0.34]
[1748138720377,0.0469,107440.0,107430.0,0.61852]
[1748138721021,0.15098641,107440.0,107430.0,0.34]
[1748138721252,0.15098641,107440.0,107430.0,0.61852]
[1748138721561,0.15389529,107440.0,107430.0,0.61852]
[1748138724804,0.15389529,107440.0,107430.0,0.37738925]
[1748138725804,0.15389529,107440.0,107430.0,0.27852]
[1748138727658,0.15389529,107440.0,107430.0,1.19756]
[1748138728085,0.15389529,107440.0,107430.0,1.1976]
[1748138728284,0.15098641,107440.0,107430.0,1.1976]
[1748138728517,0.0506,107420.0,107410.0,0.35402227]
[1748138728715,0.0427,107420.0,107410.0,0.87586327]
[1748138729846,0.0427,107420.0,107410.0,0.87686327]
[1748138730930,0.0427,107420.0,107410.0,0.87786327]
[1748138734137,0.0722,107420.0,107410.0,0.87786327]
[1748138734333,0.0427,107420.0,107410.0,0.87786327]
[1748138737510,0.0427,107420.0,107410.0,1.43494327]
[1748138737678,0.0427,107420.0,107410.0,1.79698327]
[1748138738251,0.0427,107420.0,107410.0,1.51842327]
[1748138738474,0.0427,107420.0,107410.0,1.79698327]
[1748138739039,0.0427,107420.0,107410.0,0.87786327]
[1748138740399,0.13224556,107420.0,107410.0,0.86559627]
[1748138745020,0.0295,107420.0,107410.0,0.86559627]
[1748138745626,0.0511,107420.0,107410.0,0.86559627]
[1748138745874,0.0733,107420.0,107410.0,0.86559627]
[1748138747523,0.0733,107420.0,107410.0,1.02159627]
[1748138747698,0.0733,107420.0,107410.0,1.78479627]
[1748138751067,0.0733,107420.0,107410.0,0.86559627]
[1748138753355,0.044,107430.0,107410.0,0.86559627]
[1748138753555,0.044,107430.0,107420.0,0.67301263]
[1748138753778,0.044,107430.0,107420.0,0.671861]
[1748138753957,0.044,107430.0,107420.0,0.64843]
[1748138754189,0.044,107430.0,107420.0,0.398959]
[1748138754974,0.0742,107420.0,107410.0,0.01502227]
[1748138755180,0.13424556,107420.0,107410.0,0.58214827]
[1748138756109,0.13424556,107420.0,107410.0,0.58114827]
[1748138756510,0.13424556,107420.0,107410.0,0.92114827]
[1748138757118,0.13424556,107420.0,107410.0,0.92314827]
[1748138757497,0.13424556,107420.0,107410.0,1.84330827]
[1748138758845,0.13424556,107420.0,107410.0,1.28622827]
[1748138759986,0.13316564,107420.0,107410.0,1.28622827]
[1748138760940,0.13316564,107420.0,107410.0,0.92314827]
[1748138766772,0.13316564,107420.0,107410.0,0.89775827]
[1748138767437,0.13316564,107420.0,107410.0,1.81791827]
[1748138769656,0.13316564,107420.0,107410.0,0.89775827]
[1748138774257,0.13316564,107420.0,107410.0,0.39458227]
[1748138774459,0.13316564,107420.0,107410.0,0.63458227]
[1748138774635,0.14770649,107420.0,107410.0,0.35602227]
[1748138774846,0.14770649,107420.0,107410.0,0.63458227]
[1748138774847,0.15061591,107420.0,107410.0,0.63458227]
[1748138775390,0.15061591,107420.0,107410.0,0.63358227]
[1748138775688,0.15161591,107420.0,107410.0,0.63358227]
[1748138776121,0.15161591,107420.0,107410.0,0.63258227]
[1748138776316,0.15261591,107420.0,107410.0,0.63258227]
[1748138777469,0.15261591,107420.0,107410.0,1.55278227]
[1748138777677,0.14970649,107420.0,107410.0,1.55278227]
[1748138778091,0.14970649,107420.0,107410.0,0.75514227]
[1748138778295,0.14970649,107420.0,107410.0,0.99570227]
[1748138781201,0.14970649,107420.0,107410.0,0.99501617]
[1748138781600,0.14970649,107420.0,107410.0,0.99432993]
[1748138782249,0.14970649,107420.0,107410.0,0.63056369]
[1748138782392,0.14970649,107420.0,107410.0,0.34]
[1748138782616,0.14970649,107420.0,107410.0,0.6186]
[1748138786476,0.0511,107390.0,107380.0,0.01]
[1748138786682,0.0724,107390.0,107380.0,0.414439]
[1748138787519,0.0724,107390.0,107380.0,1.332399]
[1748138787724,0.16194556,107390.0,107380.0,1.332399]
[1748138788137,0.13244556,107390.0,107380.0,0.6494]
[1748138788317,0.13344556,107390.0,107380.0,0.6494]
[1748138788964,0.13344556,107390.0,107380.0,0.9894]
[1748138789143,0.13344556,107390.0,107380.0,1.00320702]
[1748138790555,0.14798641,107390.0,107380.0,0.01]
[1748138790772,0.22191331,107390.0,107380.0,0.01]
[1748138790974,0.91861331,107390.0,107380.0,0.28864]
[1748138791416,0.91761331,107390.0,107380.0,0.28864]
[1748138791620,0.91761331,107390.0,107380.0,0.29731394]
[1748138791944,0.84468641,107390.0,107380.0,0.29731394]
[1748138792130,0.84768641,107390.0,107380.0,0.29731394]
[1748138792343,0.84468641,107390.0,107380.0,0.29731394]
[1748138792759,0.84968641,107390.0,107380.0,0.29831394]
[1748138792971,0.84868641,107390.0,107380.0,0.29831394]
[1748138793471,0.85268641,107390.0,107380.0,0.29931394]
[1748138794047,0.83814556,107390.0,107380.0,0.29931394]
[1748138794262,0.83814556,107390.0,107380.0,0.02067394]
[1748138794457,0.14144556,107390.0,107380.0,0.29935394]
[1748138794600,0.14144556,107390.0,107380.0,0.41268094]
[1748138794802,0.14144556,107390.0,107380.0,0.02067394]
[1748138795165,0.15598641,107390.0,107380.0,0.29935394]
[1748138795443,0.15098641,107390.0,107380.0,0.29835394]
[1748138795859,0.15398641,107390.0,107380.0,0.29835394]
[1748138796083,0.14998641,107390.0,107380.0,0.63735394]
[1748138796689,0.15298641,107390.0,107380.0,0.63835394]
[1748138797431,0.15298641,107390.0,107380.0,0.79439394]
[1748138797631,0.15298641,107390.0,107380.0,1.55655394]
[1748138799567,0.15298641,107390.0,107380.0,0.99923394]
[1748138800173,0.15298641,107390.0,107380.0,0.63835394]
[1748138803223,0.84968641,107390.0,107380.0,0.35967394]
[1748138803437,0.84968641,107390.0,107380.0,0.63835394]
[1748138805429,0.84968641,107390.0,107380.0,0.35967394]
[1748138805668,0.84968641,107390.0,107380.0,0.63835394]
[1748138806064,0.84968641,107390.0,107380.0,0.35967394]
[1748138806288,0.84968641,107390.0,107380.0,0.27968]
[1748138806500,0.53212045,107390.0,107380.0,0.27968]
[1748138806902,0.45699487,107390.0,107380.0,0.27968]
[1748138807374,0.15298641,107390.0,107380.0,0.27968]
[1748138807600,0.15589704,107390.0,107380.0,1.19792]
[1748138809211,0.15589704,107390.0,107380.0,1.19796]
[1748138809359,0.4699055,107390.0,107380.0,0.64064]
[1748138809569,0.46699487,107390.0,107380.0,0.64064]
[1748138809787,0.46399487,107390.0,107380.0,0.63964]
[1748138810373,0.0295,107330.0,107320.0,0.0088]
[1748138810576,0.14134556,107330.0,107320.0,0.03193282]
[1748138810779,0.14134556,107330.0,107320.0,0.479685]
[1748138810984,0.16194556,107330.0,107320.0,0.479685]
[1748138811215,0.16094556,107330.0,107320.0,0.479685]
[1748138811402,0.15994556,107330.0,107320.0,0.479685]
[1748138811604,0.11809579,107330.0,107320.0,0.479685]
[1748138812043,0.11909579,107330.0,107320.0,0.205965]
[1748138812216,0.02955023,107330.0,107320.0,0.490885]
[1748138812448,0.02955023,107330.0,107320.0,0.494485]
[1748138812619,0.02955023,107330.0,107320.0,0.484685]
[1748138813914,0.02955023,107330.0,107320.0,0.824685]
[1748138814874,0.02955023,107330.0,107320.0,0.85751052]
[1748138816170,0.02955023,107330.0,107320.0,0.57879052]
[1748138816381,0.16149579,107330.0,107320.0,0.85755052]
[1748138816793,0.11909579,107330.0,107320.0,0.85755052]
[1748138817541,0.11909579,107330.0,107320.0,1.77787052]
[1748138819620,0.11909579,107330.0,107320.0,1.78653989]
[1748138820227,0.02955023,107330.0,107320.0,0.86621989]
[1748138820475,0.02351057,107330.0,107320.0,0.87601989]
[1748138822190,0.01291057,107330.0,107320.0,0.87601989]
[1748138823740,0.0429,107350.0,107330.0,0.0062]
[1748138823962,0.7394,107360.0,107340.0,0.74262692]
[1748138824200,0.82894556,107360.0,107350.0,0.27876]
[1748138824844,0.82894556,107360.0,107350.0,0.28742937]
[1748138825487,0.83194556,107360.0,107350.0,0.28842937]
[1748138825689,0.83494556,107360.0,107350.0,0.28942937]
[1748138827594,0.83494556,107360.0,107350.0,1.20974937]
[1748138828845,0.83494556,107360.0,107350.0,0.37350937]
[1748138829059,0.83494556,107360.0,107350.0,0.65226937]
[1748138829278,0.83494556,107360.0,107350.0,0.28942937]
[1748138833189,0.13824556,107360.0,107350.0,0.28942937]
[1748138835708,0.00287511,107340.0,107320.0,0.01109823]
[1748138835898,0.00287511,107340.0,107330.0,1.244812]
[1748138836934,0.04567511,107340.0,107330.0,0.215096]
[1748138837196,0.04567511,107340.0,107330.0,0.398628]
[1748138837397,0.04467511,107340.0,107330.0,0.119868]
[1748138837682,0.04467511,107340.0,107330.0,0.763468]
[1748138838296,0.13422067,107340.0,107330.0,0.121868]
[1748138838518,0.13425704,107340.0,107330.0,0.28076]
[1748138839100,0.13425704,107340.0,107330.0,0.62076]
[1748138840789,0.0418,107340.0,107330.0,1.708499]
[1748138841027,0.0418,107340.0,107330.0,1.090227]
[1748138841224,0.0418,107340.0,107330.0,1.017337]
[1748138841422,0.0418,107340.0,107330.0,0.949585]
[1748138841974,0.0418,107340.0,107330.0,0.938437]
[1748138843449,0.0418,107340.0,107330.0,0.659677]
[1748138843650,0.0209,107340.0,107330.0,0.938437]
[1748138843972,0.0427,107340.0,107330.0,0.938437]
[1748138845399,0.043,107350.0,107330.0,0.598437]
[1748138845646,0.13254556,107350.0,107340.0,0.56334603]
[1748138845857,0.13254556,107350.0,107340.0,0.90219]
[1748138847174,0.13554556,107350.0,107340.0,0.858345]
[1748138847383,0.13554556,107350.0,107340.0,0.69734]
[1748138847535,0.046,107350.0,107340.0,1.62086]
[1748138847956,0.046,107350.0,107340.0,1.567845]
[1748138848163,0.046,107350.0,107340.0,1.57654683]
[1748138849524,0.046,107350.0,107340.0,1.01906683]
[1748138850575,0.046,107350.0,107340.0,1.29782683]
[1748138851396,0.046,107350.0,107340.0,0.93178683]
[1748138852202,0.046,107350.0,107340.0,0.77904944]
[1748138852475,0.046,107350.0,107340.0,0.59178683]
[1748138855950,0.046,107350.0,107340.0,0.93178683]
[1748138857025,0.046,107350.0,107340.0,0.923085]
[1748138857485,0.046,107350.0,107340.0,1.846605]
[1748138858333,0.046,107350.0,107340.0,1.010365]
[1748138858512,0.046,107350.0,107340.0,1.219927]
[1748138860295,0.046,107350.0,107340.0,0.853887]
[1748138862857,0.046,107350.0,107340.0,0.86259017]
[1748138863668,0.13554556,107350.0,107340.0,0.64609441]
[1748138863874,0.13845665,107350.0,107340.0,0.64609441]
[1748138865298,0.13554556,107350.0,107340.0,0.64609441]
[1748138865501,0.13554556,107350.0,107340.0,0.36733441]
[1748138865696,0.13554556,107350.0,107340.0,0.64609441]
[1748138866070,0.04887511,107350.0,107340.0,0.79427141]
[1748138866277,0.046,107350.0,107340.0,1.07090341]
[1748138866488,0.046,107350.0,107340.0,0.71716724]
[1748138866694,0.046,107350.0,107340.0,0.21308967]
[1748138866890,0.00287511,107340.0,107320.0,0.04093724]
[1748138867087,0.00287511,107340.0,107330.0,1.07193]
[1748138867455,0.00287511,107340.0,107330.0,1.43797]
[1748138867680,0.04597511,107340.0,107330.0,1.43797]
[1748138868043,0.04697511,107340.0,107330.0,2.05673]
[1748138868377,0.04697511,107340.0,107330.0,1.69069]
[1748138868589,0.04597511,107340.0,107330.0,1.69069]
[1748138868789,0.04597511,107340.0,107330.0,1.69169]
[1748138874525,0.04597511,107340.0,107330.0,1.41293]
[1748138874786,0.13264556,107340.0,107330.0,0.001]
[1748138875002,0.1355569,107340.0,107330.0,0.28846439]
[1748138876864,0.15009775,107340.0,107330.0,0.00970439]
[1748138877041,0.15009775,107340.0,107330.0,0.28846439]
[1748138877451,0.15009775,107340.0,107330.0,0.84594439]
[1748138877655,0.15009775,107340.0,107330.0,1.20822439]
[1748138878872,0.15009775,107340.0,107330.0,0.65074439]
[1748138879671,0.13264556,107340.0,107330.0,0.28846439]
[1748138879880,0.13264556,107340.0,107330.0,0.42458339]
[1748138880083,0.0431,107340.0,107330.0,0.42458339]
[1748138881129,0.0427,107350.0,107330.0,0.42458339]
[1748138881361,0.0427,107350.0,107340.0,1.253558]
[1748138881561,0.0427,107350.0,107340.0,1.112979]
[1748138882341,0.0427,107350.0,107340.0,1.04586]
[1748138882763,0.0427,107350.0,107340.0,0.94693]
[1748138883013,0.0447,107350.0,107340.0,0.94693]
[1748138884367,0.0457,107350.0,107340.0,0.94693]
[1748138886942,0.0457,107350.0,107340.0,1.22569]
[1748138887646,0.0457,107350.0,107340.0,2.14545]
[1748138889368,0.0457,107350.0,107340.0,1.84182]
[1748138890505,0.0457,107350.0,107340.0,0.92206]
[1748138897614,0.13524556,107350.0,107340.0,1.25976]
[1748138897857,0.13524556,107350.0,107340.0,1.660686]
[1748138898048,0.13524556,107350.0,107340.0,1.53852]
[1748138898604,0.13524556,107350.0,107340.0,1.67026863]
[1748138898995,0.13524556,107350.0,107340.0,1.54721063]
[1748138899394,0.13524556,107350.0,107340.0,1.70331463]
[1748138899599,0.13524556,107350.0,107340.0,1.137144]
[1748138900013,0.13524556,107350.0,107340.0,0.98104]
[1748138901045,0.13524556,107350.0,107340.0,1.12875]
[1748138901500,0.13524556,107350.0,107340.0,0.76647]
[1748138905433,0.0457,107350.0,107340.0,0.76647]
[1748138907469,0.0457,107350.0,107340.0,1.68643]
[1748138909686,0.0457,107350.0,107340.0,0.76647]
[1748138917637,0.0457,107350.0,107340.0,1.68643]
[1748138917995,0.0457,107350.0,107340.0,1.12895]
[1748138920515,0.0457,107350.0,107340.0,0.48771]
[1748138920705,0.0457,107350.0,107340.0,0.76647]
[1748138925418,0.04857511,107350.0,107340.0,0.76647]
[1748138925619,0.0457,107350.0,107340.0,0.76647]
[1748138926119,0.0437,107350.0,107340.0,0.76647]
[1748138927667,0.0437,107350.0,107340.0,1.12895]
[1748138927891,0.003,107350.0,107340.0,0.76647]
[1748138928112,0.003,107350.0,107340.0,0.77077]
[1748138928673,0.002,107350.0,107340.0,0.77077]
[1748138928876,0.002,107350.0,107340.0,0.77177]
[1748138929102,0.003,107350.0,107340.0,0.76747]
[1748138929475,0.001,107350.0,107340.0,0.78496823]
[1748138930584,0.0453,107360.0,107340.0,0.78396823]
[1748138930881,0.0453,107360.0,107350.0,1.073085]
[1748138931081,0.0453,107360.0,107350.0,1.07193]
[1748138932259,0.0463,107360.0,107350.0,1.07193]
[1748138933702,0.04917511,107360.0,107350.0,1.07193]
[1748138933826,0.04917511,107360.0,107350.0,0.837116]
[1748138934035,0.13972067,107360.0,107350.0,0.48324]
[1748138934257,0.14072067,107360.0,107350.0,0.763617]
[1748138934446,0.14072067,107360.0,107350.0,0.735644]
[1748138937620,0.14072067,107360.0,107350.0,1.653964]
[1748138938325,0.14072067,107360.0,107350.0,1.096524]
[1748138940592,0.14072067,107360.0,107350.0,0.456924]
[1748138940775,0.13784556,107360.0,107350.0,0.735644]
[1748138945703,0.13784556,107360.0,107350.0,0.456924]
[1748138945903,0.13784556,107360.0,107350.0,0.735644]
[1748138947458,0.13784556,107360.0,107350.0,1.293084]
[1748138947658,0.13784556,107360.0,107350.0,1.654004]
[1748138947831,0.13784556,107360.0,107350.0,1.096564]
[1748138949832,0.13784556,107360.0,107350.0,0.735644]
[1748138951377,0.13784556,107360.0,107350.0,0.456924]
[1748138951742,0.15238641,107360.0,107350.0,0.735644]
[1748138951931,0.15238641,107360.0,107350.0,0.456924]
[1748138952142,0.15238641,107360.0,107350.0,0.735644]
[1748138957462,0.15238641,107360.0,107350.0,1.654004]
[1748138958722,0.13784556,107360.0,107350.0,0.735644]
[1748138963673,0.05117511,107360.0,107350.0,0.735644]
[1748138963871,0.003,107360.0,107350.0,0.735644]
[1748138965087,0.00587511,107360.0,107350.0,0.735644]
[1748138965615,0.003,107360.0,107350.0,0.735644]
[1748138965830,0.00587511,107360.0,107350.0,0.735644]
[1748138967434,0.02707511,107360.0,107350.0,0.735644]
[1748138967760,0.02707511,107360.0,107350.0,1.654004]
[1748138968242,0.02707511,107360.0,107350.0,1.314004]
[1748138968742,0.04917511,107360.0,107350.0,1.314004]
[1748138969632,0.04917511,107360.0,107350.0,0.395644]
[1748138970181,0.04917511,107360.0,107350.0,0.735644]
[1748138972674,0.04917511,107360.0,107350.0,0.456924]
[1748138972873,0.04917511,107360.0,107350.0,0.735644]
[1748138973435,0.04917511,107360.0,107350.0,0.456924]
[1748138973635,0.04917511,107360.0,107330.0,0.01109823]
[1748138973636,0.04567511,107340.0,107330.0,0.01109823]
[1748138973841,0.04567511,107340.0,107330.0,0.86609123]
[1748138975067,0.04567511,107340.0,107330.0,0.854993]
[1748138975365,0.04667511,107340.0,107330.0,0.859993]
[1748138977124,0.0438,107340.0,107330.0,1.199993]
[1748138977337,0.04667511,107340.0,107330.0,1.199993]
[1748138977552,0.04667511,107340.0,107330.0,2.118153]
[1748138979064,0.04667511,107340.0,107330.0,1.560713]
[1748138981048,0.04667511,107340.0,107330.0,1.199993]
[1748138981243,0.04667511,107340.0,107330.0,0.99570097]
[1748138981452,0.04667511,107340.0,107330.0,1.09570097]
[1748138981662,0.13622067,107340.0,107330.0,1.080082]
[1748138981893,0.13334556,107340.0,107330.0,0.445]
[1748138982184,0.13334556,107340.0,107330.0,0.872643]
[1748138982433,0.13334556,107340.0,107330.0,0.11369289]
[1748138982646,0.13334556,107340.0,107330.0,0.49359289]
[1748138982855,0.13334556,107340.0,107330.0,0.51803289]
[1748138987684,0.13334556,107340.0,107330.0,1.43627289]
[1748138988768,0.13334556,107340.0,107330.0,0.87879289]
[1748138988979,0.13334556,107340.0,107330.0,0.75321289]
[1748138989182,0.13334556,107340.0,107330.0,0.88905589]
[1748138989382,0.13334556,107340.0,107330.0,0.11369289]
[1748138989625,0.13334556,107340.0,107330.0,0.39245289]
[1748138994501,0.13334556,107340.0,107330.0,0.11369289]
[1748138994702,0.14788641,107340.0,107330.0,0.39249289]
[1748138997466,0.14788641,107340.0,107330.0,1.31077289]
[1748138997803,0.14788641,107340.0,107330.0,0.75325289]
[1748138998379,0.13334556,107340.0,107330.0,0.93307889]
[1748138998578,0.13334556,107340.0,107330.0,0.87236189]
[1748138999093,0.13334556,107340.0,107330.0,0.85456489]
[1748138999242,0.13334556,107340.0,107330.0,0.78927889]
[1748139000361,0.13334556,107340.0,107330.0,0.69350589]
[1748139000812,0.13334556,107340.0,107330.0,0.66610089]
[1748139001560,0.13334556,107340.0,107330.0,0.65347789]
[1748139003203,0.0438,107340.0,107330.0,0.65347789]
[1748139003633,0.04667511,107340.0,107330.0,0.65347789]
[1748139003995,0.00387511,107340.0,107330.0,0.65347789]
[1748139004196,0.001,107340.0,107330.0,0.65347789]
[1748139004836,0.001,107340.0,107330.0,0.644785]
[1748139005783,0.00287511,107340.0,107330.0,0.644785]
[1748139006115,0.0414,107350.0,107330.0,0.644785]
[1748139006364,0.0414,107350.0,107340.0,0.561628]
[1748139006882,0.0414,107350.0,107340.0,0.505816]
[1748139007538,0.0414,107350.0,107340.0,1.423976]
[1748139008263,0.0424,107350.0,107340.0,1.423976]
[1748139008483,0.0424,107350.0,107340.0,0.83975]
[1748139008679,0.0414,107350.0,107340.0,0.83975]
[1748139009143,0.0424,107350.0,107340.0,0.84175]
[1748139009358,0.0424,107350.0,107340.0,0.806979]
[1748139009562,0.0424,107350.0,107340.0,0.704284]
[1748139009775,0.13194556,107350.0,107340.0,0.64144]
[1748139010166,0.13194556,107350.0,107340.0,0.65013636]
[1748139010911,0.14648641,107350.0,107340.0,0.01069636]
[1748139011131,0.14648641,107350.0,107340.0,0.28945636]
[1748139013771,0.14648641,107350.0,107340.0,0.01069636]
[1748139013974,0.14648641,107350.0,107340.0,0.28945636]
[1748139014235,0.14939782,107350.0,107340.0,0.28945636]
[1748139017587,0.14939782,107350.0,107340.0,1.20761636]
[1748139019422,0.14939782,107350.0,107340.0,0.01069636]
[1748139019656,0.14939782,107350.0,107340.0,0.28949636]
[1748139020453,0.14648641,107350.0,107340.0,0.01069636]
[1748139020682,0.14939818,107350.0,107340.0,0.28949636]
[1748139021523,0.14839818,107350.0,107340.0,0.28749636]
[1748139021841,0.14939818,107350.0,107340.0,0.28749636]
[1748139022164,0.15139818,107350.0,107340.0,0.28749636]
[1748139022366,0.49139818,107350.0,107340.0,0.00869636]
[1748139022539,0.48848641,107350.0,107340.0,0.28749636]
[1748139023123,0.48848641,107350.0,107340.0,0.00869636]
[1748139023323,0.48848641,107350.0,107340.0,0.28749636]
[1748139024649,0.48748641,107350.0,107340.0,0.28749636]
[1748139024879,0.48548641,107350.0,107340.0,0.28749636]
[1748139025077,0.48848641,107350.0,107340.0,0.28849636]
[1748139027175,0.48948641,107350.0,107340.0,0.28949636]
[1748139027618,0.48948641,107350.0,107340.0,1.20781636]
[1748139029497,0.79349487,107350.0,107340.0,1.20781636]
[1748139030517,0.79349487,107350.0,107340.0,0.28949636]
[1748139030885,0.79349487,107350.0,107340.0,0.28953636]
[1748139031068,0.00287511,107340.0,107320.0,0.00015089]
[1748139031303,0.79049487,107330.0,107320.0,0.00015089]
[1748139031449,0.80049487,107330.0,107320.0,0.27899089]
[1748139031620,0.85049487,107330.0,107320.0,0.00015089]
[1748139031827,0.85049487,107330.0,107320.0,0.27899089]
[1748139032286,0.85049487,107330.0,107320.0,0.27999089]
[1748139032455,0.85049487,107330.0,107320.0,0.27899089]
[1748139032864,0.85449487,107330.0,107320.0,0.27999089]
[1748139033062,0.8645869,107330.0,107320.0,0.27999089]
[1748139034100,0.85349487,107330.0,107320.0,0.27999089]
[1748139034303,0.84649487,107330.0,107320.0,0.00115089]
[1748139034517,0.84649487,107330.0,107320.0,0.27999089]
[1748139035639,0.84249487,107330.0,107320.0,0.00015089]
[1748139035835,0.84649487,107330.0,107320.0,0.27899089]
[1748139036064,0.84349487,107330.0,107320.0,0.27899089]
[1748139036267,0.84849487,107330.0,107320.0,0.27899089]
[1748139036421,0.93801638,107330.0,107320.0,0.27899089]
[1748139036622,0.94301638,107330.0,107320.0,0.00015089]
[1748139036819,0.94301638,107330.0,107320.0,0.27903089]
[1748139037224,0.85349487,107330.0,107320.0,0.27903089]
[1748139037769,0.85349487,107330.0,107320.0,0.55787089]
[1748139037972,0.85349487,107330.0,107320.0,0.63967089]
[1748139038704,0.85349487,107330.0,107320.0,0.00015089]
[1748139038908,0.54948641,107330.0,107320.0,0.00015089]
[1748139039229,0.9288373,107330.0,107320.0,0.27903089]
[1748139040302,0.54948641,107330.0,107320.0,0.27903089]
[1748139040509,0.8645869,107330.0,107320.0,0.27903089]
[1748139042317,0.56057844,107330.0,107320.0,0.27903089]
[1748139042534,0.8645869,107330.0,107320.0,0.27903089]
[1748139043479,0.88304367,107330.0,107320.0,0.27903089]
[1748139044228,0.66855672,107330.0,107320.0,0.27903089]
[1748139044439,0.97256518,107330.0,107320.0,0.27903089]
[1748139045675,0.57903521,107330.0,107320.0,0.27903089]
[1748139045967,0.88304367,107330.0,107320.0,0.27903089]
[1748139047199,0.88304367,107330.0,107320.0,0.27907089]
[1748139047620,0.88304367,107330.0,107320.0,1.19759089]
[1748139051181,0.88304367,107330.0,107320.0,0.63979089]
[1748139052511,0.57903521,107330.0,107320.0,0.27907089]
[1748139052837,0.91095967,107330.0,107320.0,0.27907089]
[1748139054866,0.9257323,107330.0,107320.0,0.27907089]
[1748139055475,0.93918377,107330.0,107320.0,0.27907089]
[1748139055882,0.91464027,107330.0,107320.0,0.27907089]
[1748139057600,0.91464027,107330.0,107220.0,0.01636]
[1748139057811,0.01287511,107270.0,107240.0,1.346598]
[1748139058017,0.01287511,107270.0,107250.0,1.067638]
[1748139058182,0.01287511,107270.0,107260.0,0.495917]
[1748139058381,0.01287511,107270.0,107260.0,0.51019439]
[1748139058997,0.01387511,107270.0,107260.0,0.51888674]
[1748139060199,0.01287511,107270.0,107260.0,0.52088674]
[1748139060403,0.01387511,107270.0,107260.0,0.52088674]
[1748139060607,0.01487511,107270.0,107260.0,0.52088674]
[1748139061007,0.01487511,107270.0,107260.0,0.24192674]
[1748139061206,0.01487511,107270.0,107260.0,0.52088674]
[1748139063933,0.01487511,107270.0,107260.0,0.40392974]
[1748139066868,0.09154556,107270.0,107260.0,0.12496974]
[1748139067218,0.09154556,107270.0,107260.0,0.40392974]
[1748139067423,0.09154556,107270.0,107260.0,1.33200974]
[1748139067634,0.09154556,107270.0,107260.0,0.77412974]
[1748139067857,0.08954556,107270.0,107260.0,1.02041274]
[1748139068255,0.08148009,107270.0,107260.0,1.02041274]
[1748139069700,0.08248009,107270.0,107260.0,0.65221274]
[1748139070716,0.012,107270.0,107260.0,0.65221274]
[1748139071318,0.012,107270.0,107260.0,0.63741574]
[1748139071546,0.012,107270.0,107260.0,0.58671474]
[1748139071765,0.012,107270.0,107260.0,0.56571074]
[1748139071973,0.09154556,107270.0,107260.0,0.40392974]
[1748139072185,0.09154556,107270.0,107260.0,0.50493374]
[1748139073301,0.09154556,107270.0,107260.0,0.12496974]
[1748139073438,0.09154556,107270.0,107260.0,0.40392974]
[1748139077511,0.09154556,107270.0,107260.0,1.05304974]
[1748139077746,0.13604556,107270.0,107260.0,0.01069235]
[1748139077946,0.13604556,107270.0,107260.0,0.28965235]
[1748139078571,0.13504556,107270.0,107260.0,0.28965235]
[1748139078761,0.13504556,107270.0,107260.0,0.28765235]
[1748139078922,0.15058641,107270.0,107260.0,0.01069235]
[1748139079128,0.15058641,107270.0,107260.0,0.28965235]
[1748139079802,0.14958641,107270.0,107260.0,0.28765235]
[1748139080184,0.15058641,107270.0,107260.0,0.00969235]
[1748139080389,0.15058641,107270.0,107260.0,0.28865235]
[1748139080592,0.15158641,107270.0,107260.0,0.28865235]
[1748139081228,0.15158641,107270.0,107260.0,0.00969235]
[1748139081421,0.15158641,107270.0,107260.0,0.28865235]
[1748139083505,0.14848641,107270.0,107260.0,0.28865235]
[1748139083926,0.15139993,107270.0,107260.0,0.28865235]
[1748139087510,0.15139993,107270.0,107260.0,1.21681235]
[1748139087933,0.14848641,107270.0,107260.0,0.65889235]
[1748139088134,0.09254556,107270.0,107260.0,0.65889235]
[1748139088291,0.11685883,107270.0,107260.0,0.65889235]
[1748139088509,0.13875883,107270.0,107260.0,0.65889235]
[1748139090067,0.13875883,107270.0,107260.0,0.28865235]